bitfinex/quotes_BTCUSD_20230111
["timestamp","ask_amount","ask_price","bid_price","bid_amount"]
[1673474993212,2.20004,17546.0,17545.0,2.41392151]
[1673474993449,2.47909161,17546.0,17545.0,2.36507837]
[1673474993935,3.05470691,17546.0,17545.0,2.49807837]
[1673474994179,3.05770691,17546.0,17545.0,2.49807837]
[1673474994428,2.7786553,17546.0,17545.0,2.49807837]
[1673474994692,3.02266119,17546.0,17545.0,2.49807837]
[1673474995195,2.44704589,17546.0,17545.0,2.49807837]
[1673474995960,2.95859587,17546.0,17545.0,2.49807837]
[1673474996197,2.95858356,17546.0,17545.0,2.49807837]
[1673474996437,2.44704589,17546.0,17545.0,2.49807837]
[1673474997416,3.02266119,17546.0,17545.0,2.66067837]
[1673474998698,3.05308925,17546.0,17545.0,2.66067837]
[1673475001447,2.47747395,17546.0,17545.0,2.66067837]
[1673475002464,3.05249006,17546.0,17545.0,2.66067837]
[1673475003448,3.10999858,17546.0,17545.0,2.66067837]
[1673475004502,3.10999858,17546.0,17545.0,2.49807837]
[1673475005250,2.83556463,17546.0,17545.0,2.49807837]
[1673475005494,3.13411556,17546.0,17545.0,2.49807837]
[1673475006757,2.55909945,17546.0,17545.0,2.49807837]
[1673475007258,3.13411556,17546.0,17545.0,2.49807837]
[1673475008002,2.55909945,17546.0,17545.0,2.49807837]
[1673475008243,2.25909945,17546.0,17545.0,2.49807837]
[1673475009510,2.55909945,17546.0,17545.0,2.49807837]
[1673475011006,2.50159093,17546.0,17545.0,2.49807837]
[1673475011253,2.55909945,17546.0,17545.0,2.49807837]
[1673475012471,3.13411556,17546.0,17545.0,2.49807837]
[1673475013642,2.83556463,17546.0,17545.0,2.19807837]
[1673475013907,3.09255717,17546.0,17545.0,2.19807837]
[1673475014189,2.51754106,17546.0,17545.0,2.19807837]
[1673475014726,3.09287165,17546.0,17545.0,2.19807837]
[1673475015231,2.83587911,17546.0,17545.0,2.19807837]
[1673475015483,2.26054852,17546.0,17545.0,2.19807837]
[1673475015744,2.54610528,17546.0,17545.0,2.19807837]
[1673475016233,2.54610528,17546.0,17545.0,2.19798089]
[1673475016757,2.26054852,17546.0,17545.0,2.19798089]
[1673475017065,2.47149797,17546.0,17545.0,2.19798089]
[1673475017242,2.98931814,17546.0,17545.0,2.19798089]
[1673475017486,2.41398945,17546.0,17545.0,2.19798089]
[1673475017742,3.04685557,17546.0,17545.0,2.19798089]
[1673475019495,2.47149797,17546.0,17545.0,2.19798089]
[1673475019996,3.04694207,17546.0,17545.0,2.19798089]
[1673475020244,2.98943355,17546.0,17545.0,2.19798089]
[1673475021258,2.47149797,17546.0,17545.0,2.19798089]
[1673475022778,2.32001617,17546.0,17545.0,2.19798089]
[1673475023294,2.61847632,17546.0,17545.0,1.91147689]
[1673475023545,3.45843465,17546.0,17545.0,1.30620489]
[1673475023806,3.45843465,17546.0,17545.0,0.21984189]
[1673475024065,3.1599745,17546.0,17544.0,0.0442918]
[1673475024314,0.49025,17545.0,17544.0,0.0442918]
[1673475024563,2.200136,17545.0,17544.0,0.0442918]
[1673475024815,2.25764452,17545.0,17544.0,0.0442918]
[1673475025069,2.200136,17545.0,17544.0,0.0442918]
[1673475025319,2.25764452,17545.0,17544.0,0.0442918]
[1673475025576,2.25764452,17545.0,17542.0,0.22788247]
[1673475025577,3.11260285,17545.0,17542.0,0.22788247]
[1673475025827,2.27264452,17545.0,17542.0,0.22788247]
[1673475026331,2.85724452,17545.0,17542.0,0.22788247]
[1673475026626,2.87324452,17545.0,17542.0,0.22788247]
[1673475026878,3.69720285,17545.0,17542.0,0.22788247]
[1673475027205,0.11320852,17544.0,17542.0,0.22788247]
[1673475027383,0.0085,17543.0,17542.0,0.22788247]
[1673475027635,2.82786652,17543.0,17542.0,0.23088247]
[1673475027883,2.82786652,17543.0,17542.0,0.18097167]
[1673475028383,2.82786652,17543.0,17542.0,0.17797167]
[1673475028632,2.84286652,17543.0,17542.0,0.18097167]
[1673475030902,3.44246652,17543.0,17541.0,0.01686135]
[1673475031159,0.1494,17542.0,17541.0,0.01686135]
[1673475031406,1.90043,17542.0,17541.0,3.5e-07]
[1673475031653,2.34983,17542.0,17540.0,0.01686135]
[1673475031914,0.40118,17541.0,17540.0,0.01686135]
[1673475032159,2.200526,17541.0,17540.0,0.01686135]
[1673475032416,2.83245879,17541.0,17540.0,0.01686135]
[1673475032669,2.25803452,17541.0,17540.0,0.01686135]
[1673475034201,2.39403452,17541.0,17540.0,0.01686135]
[1673475034955,3.56764212,17541.0,17540.0,0.01686135]
[1673475035208,0.0566,17540.0,17539.0,0.0153076]
[1673475035460,0.00252613,17539.0,17537.0,0.04776233]
[1673475035725,2.46624981,17538.0,17536.0,0.0163913]
[1673475036018,0.99190812,17537.0,17536.0,0.0163913]
[1673475036252,1.04941664,17537.0,17536.0,0.0163913]
[1673475036498,1.6276633,17537.0,17536.0,0.0163913]
[1673475037012,1.11798052,17537.0,17536.0,0.0162413]
[1673475037259,1.39354648,17537.0,17536.0,0.0162413]
[1673475037515,1.9032146,17537.0,17536.0,0.0162413]
[1673475037759,1.6332146,17537.0,17536.0,0.0162413]
[1673475038011,1.12354648,17537.0,17536.0,0.0162413]
[1673475038525,1.35764864,17537.0,17536.0,0.0162413]
[1673475039046,1.65764864,17537.0,17536.0,0.0162413]
[1673475039314,2.01516849,17537.0,17536.0,0.0162413]
[1673475039565,1.71711629,17537.0,17536.0,0.0162413]
[1673475040077,1.65960777,17537.0,17536.0,0.0162413]
[1673475040573,1.14993965,17537.0,17536.0,0.0162413]
[1673475041073,1.20744817,17537.0,17536.0,0.0162413]
[1673475041567,1.63163134,17537.0,17536.0,0.0162413]
[1673475041822,1.43088312,17537.0,17536.0,0.0162413]
[1673475042074,2.70518151,17537.0,17536.0,0.0162413]
[1673475042329,2.70517669,17537.0,17536.0,0.0162413]
[1673475042582,2.70503763,17537.0,17536.0,0.0162413]
[1673475043083,2.53526043,17537.0,17536.0,0.0162413]
[1673475043852,2.70503763,17537.0,17536.0,0.0162413]
[1673475044112,2.53526323,17537.0,17536.0,0.0162413]
[1673475044618,2.36562567,17537.0,17536.0,0.0162413]
[1673475045394,2.53526323,17537.0,17536.0,0.0162413]
[1673475045895,2.70503763,17537.0,17536.0,0.0162413]
[1673475046147,2.48160268,17537.0,17536.0,0.0162413]
[1673475046661,1.71820252,17537.0,17536.0,0.0162413]
[1673475046915,2.1420165,17537.0,17536.0,0.0162413]
[1673475047182,1.77767017,17537.0,17536.0,0.0162413]
[1673475047931,2.58539049,17537.0,17536.0,0.0162413]
[1673475048191,2.07572237,17537.0,17536.0,0.0162413]
[1673475048442,1.77767017,17537.0,17536.0,0.0162413]
[1673475048699,2.54037986,17537.0,17536.0,0.0162413]
[1673475049214,2.20139292,17537.0,17536.0,0.0162413]
[1673475051256,2.1438844,17537.0,17536.0,0.0162413]
[1673475051768,1.72016165,17537.0,17536.0,0.0162413]
[1673475052024,2.85351872,17537.0,17534.0,0.06543985]
[1673475052280,0.94443709,17535.0,17534.0,0.06543985]
[1673475052544,2.771398,17535.0,17534.0,0.0171227]
[1673475052802,3.25258051,17535.0,17534.0,0.0171227]
[1673475053314,3.38858051,17535.0,17534.0,0.0171227]
[1673475053854,3.38858051,17535.0,17532.0,0.0499483]
[1673475053855,3.63662684,17535.0,17532.0,0.0499483]
[1673475054091,0.77401471,17533.0,17532.0,0.0499483]
[1673475054338,3.35626671,17533.0,17531.0,0.01]
[1673475054602,0.48175,17532.0,17531.0,0.01]
[1673475054859,0.49025,17532.0,17531.0,0.01]
[1673475055109,1.92536514,17532.0,17531.0,0.01]
[1673475055360,1.63102,17532.0,17531.0,0.01]
[1673475055620,1.80042104,17532.0,17531.0,0.01]
[1673475055871,2.37080604,17532.0,17531.0,0.01]
[1673475056621,2.84515753,17532.0,17531.0,0.01]
[1673475056873,2.56231456,17532.0,17531.0,0.01]
[1673475057127,2.50480604,17532.0,17531.0,0.01]
[1673475057384,2.75899377,17532.0,17531.0,0.01]
[1673475057650,2.50480604,17532.0,17531.0,0.01]
[1673475057920,2.79388524,17532.0,17531.0,0.01]
[1673475058173,2.6244842,17532.0,17531.0,0.01]
[1673475058930,2.79388524,17532.0,17531.0,0.01]
[1673475059188,2.6244842,17532.0,17531.0,0.01]
[1673475059468,2.335405,17532.0,17531.0,0.01]
[1673475059739,2.335405,17532.0,17530.0,0.1784227]
[1673475059740,0.40738206,17531.0,17530.0,0.1784227]
[1673475059972,2.201504,17531.0,17530.0,0.1784227]
[1673475060469,2.25901252,17531.0,17530.0,0.1784227]
[1673475061271,2.42830421,17531.0,17530.0,0.1784227]
[1673475061545,2.72405966,17531.0,17530.0,0.1784227]
[1673475061781,3.11424739,17531.0,17530.0,0.1784227]
[1673475062546,2.98800788,17531.0,17530.0,0.1784227]
[1673475062791,2.81868247,17531.0,17530.0,0.1784227]
[1673475063038,2.76117395,17531.0,17530.0,0.1784227]
[1673475063289,2.65654159,17531.0,17530.0,0.1784227]
[1673475063558,2.82613316,17531.0,17530.0,0.1784227]
[1673475063792,2.82613316,17531.0,17530.0,0.20710776]
[1673475064050,2.65654159,17531.0,17530.0,0.20710776]
[1673475064571,2.65654159,17531.0,17530.0,0.04580776]
[1673475064817,2.08612359,17531.0,17530.0,0.04580776]
[1673475065074,1.78612359,17531.0,17530.0,0.04580776]
[1673475065325,1.46697665,17531.0,17530.0,0.04580776]
[1673475066338,1.46697665,17531.0,17530.0,0.20840776]
[1673475067643,1.76697665,17531.0,17530.0,0.20840776]
[1673475069457,1.93656822,17531.0,17530.0,0.04580776]
[1673475069711,1.76697665,17531.0,17530.0,0.04580776]
[1673475070221,2.22066975,17531.0,17530.0,0.04580776]
[1673475071284,0.89655865,17531.0,17530.0,0.20710776]
[1673475071517,0.89655865,17531.0,17530.0,0.56395676]
[1673475071820,0.32614065,17531.0,17530.0,0.56395676]
[1673475072029,0.32614065,17531.0,17530.0,1.07797294]
[1673475072280,0.32614065,17531.0,17530.0,0.72112394]
[1673475072530,1.19655865,17531.0,17530.0,0.20710776]
[1673475072789,1.36615022,17531.0,17530.0,0.20710776]
[1673475073043,1.93656822,17531.0,17530.0,0.20710776]
[1673475074576,0.31764065,17531.0,17530.0,1.20968649]
[1673475074822,0.32614065,17531.0,17530.0,1.48814448]
[1673475075123,0.19014065,17531.0,17530.0,1.32684448]
[1673475075648,0.39673222,17531.0,17530.0,0.72985676]
[1673475075900,0.41173222,17531.0,17530.0,0.74185676]
[1673475076416,0.71173222,17531.0,17530.0,0.74185676]
[1673475077170,0.41173222,17531.0,17530.0,0.99065887]
[1673475077421,0.24214065,17531.0,17530.0,1.58523004]
[1673475077937,0.24214065,17531.0,17530.0,1.58595361]
[1673475078717,0.24214065,17531.0,17530.0,2.02650192]
[1673475078988,0.24214065,17531.0,17530.0,1.3371515]
[1673475080518,0.24214065,17531.0,17530.0,0.74185676]
[1673475080804,1.85256822,17531.0,17530.0,0.74185676]
[1673475081048,2.27608136,17531.0,17530.0,0.57925676]
[1673475081308,1.80739503,17531.0,17530.0,0.57925676]
[1673475081561,2.27608136,17531.0,17530.0,0.57925676]
[1673475082124,1.80739627,17531.0,17530.0,0.57925676]
[1673475082620,1.97608136,17531.0,17530.0,0.57925676]
[1673475083637,2.27608136,17531.0,17530.0,0.57925676]
[1673475084105,2.27608136,17531.0,17530.0,0.57919495]
[1673475084387,2.14553985,17531.0,17530.0,0.57919495]
[1673475084635,2.44553985,17531.0,17530.0,0.57919495]
[1673475085427,2.14553985,17531.0,17530.0,0.72374255]
[1673475085675,1.8088017,17531.0,17530.0,1.25551441]
[1673475085970,2.14771631,17531.0,17530.0,1.25551441]
[1673475086171,1.80879933,17531.0,17530.0,1.25551441]
[1673475086427,0.82805171,17531.0,17530.0,1.25551441]
[1673475086678,0.40400229,17531.0,17530.0,2.10716483]
[1673475086926,0.65949637,17531.0,17530.0,2.35286199]
[1673475087172,0.65949637,17531.0,17530.0,4.35286199]
[1673475087677,0.65949637,17531.0,17530.0,3.66351157]
[1673475088509,0.82805171,17531.0,17530.0,3.66351157]
[1673475088727,0.65946525,17531.0,17530.0,4.35286199]
[1673475089196,0.65946525,17531.0,17530.0,3.66351157]
[1673475089448,0.65946525,17531.0,17530.0,4.35286199]
[1673475089699,0.65946525,17531.0,17530.0,3.66351157]
[1673475090448,0.82805171,17531.0,17530.0,3.66351157]
[1673475090969,0.82805171,17531.0,17530.0,3.83774253]
[1673475090970,0.40397638,17531.0,17530.0,3.83774253]
[1673475091218,0.40397638,17531.0,17530.0,5.04388789]
[1673475091736,0.40397638,17531.0,17530.0,5.34388789]
[1673475092318,0.40397638,17531.0,17530.0,4.77343789]
[1673475092556,0.65947046,17531.0,17530.0,4.77343789]
[1673475093085,0.65947046,17531.0,17530.0,4.13774253]
[1673475093347,0.34236046,17532.0,17531.0,0.1]
[1673475093672,0.34236046,17532.0,17531.0,2.86595697]
[1673475093673,0.08686638,17532.0,17531.0,2.86595697]
[1673475093848,0.59441106,17533.0,17531.0,2.26239951]
[1673475094112,0.25549408,17533.0,17532.0,1.3567677]
[1673475094379,0.25549408,17533.0,17532.0,1.65384539]
[1673475094616,0.25549408,17533.0,17532.0,0.97882669]
[1673475094873,0.25549408,17533.0,17532.0,1.65384539]
[1673475095169,0.58941106,17533.0,17532.0,1.65384539]
[1673475095436,0.25049408,17533.0,17532.0,1.65384539]
[1673475095708,0.60441106,17533.0,17532.0,1.66584539]
[1673475096225,0.60441106,17533.0,17532.0,2.31835886]
[1673475100097,0.60441106,17533.0,17532.0,2.31763536]
[1673475100595,0.60441106,17533.0,17532.0,1.64261666]
[1673475100853,0.60441106,17533.0,17532.0,2.31763536]
[1673475101101,0.26549408,17533.0,17532.0,2.31763536]
[1673475101348,0.26549408,17533.0,17532.0,1.66512189]
[1673475101600,0.015,17533.0,17532.0,2.33479161]
[1673475101852,0.015,17533.0,17532.0,2.33551511]
[1673475102113,0.015,17533.0,17532.0,2.49811511]
[1673475102646,0.015,17533.0,17532.0,3.36850011]
[1673475103146,0.7625632,17535.0,17532.0,4.24681539]
[1673475103410,0.17029559,17535.0,17534.0,0.4865]
[1673475103658,0.17029559,17535.0,17534.0,1.8183677]
[1673475103914,0.17029559,17535.0,17534.0,4.47652876]
[1673475104179,0.9125632,17536.0,17535.0,0.17029]
[1673475104180,0.42576046,17536.0,17535.0,0.17029]
[1673475104435,0.17029559,17536.0,17535.0,2.28260537]
[1673475104702,0.43002577,17537.0,17535.0,2.85289237]
[1673475104967,0.43002577,17537.0,17536.0,2.11271537]
[1673475105247,0.43002577,17537.0,17536.0,2.9920674]
[1673475105248,0.1745609,17537.0,17536.0,2.9920674]
[1673475105482,0.00426531,17537.0,17536.0,2.9920674]
[1673475105749,0.00426531,17537.0,17536.0,3.8623224]
[1673475106037,5.31e-06,17537.0,17536.0,3.8623224]
[1673475106530,5.31e-06,17537.0,17536.0,4.0063224]
[1673475106781,5.31e-06,17537.0,17536.0,4.61582468]
[1673475107804,1.004e-05,17538.0,17537.0,0.3]
[1673475108057,1.477e-05,17539.0,17537.0,4.03911711]
[1673475108306,1.477e-05,17539.0,17538.0,1.5187677]
[1673475108592,1.477e-05,17539.0,17538.0,2.0889577]
[1673475108834,1.477e-05,17539.0,17538.0,4.0889577]
[1673475109093,1.477e-05,17539.0,17538.0,2.681149]
[1673475109342,1.477e-05,17539.0,17538.0,1.71724837]
[1673475109589,1.477e-05,17539.0,17538.0,0.825149]
[1673475109872,0.57017177,17539.0,17538.0,0.52311399]
[1673475110112,1.30443223,17539.0,17538.0,0.31226499]
[1673475110369,1.47305362,17539.0,17538.0,0.31226499]
[1673475110866,1.47305362,17539.0,17538.0,0.37349149]
[1673475111119,1.47305362,17539.0,17538.0,0.31226499]
[1673475111120,1.30407152,17539.0,17538.0,0.31226499]
[1673475111622,1.73473849,17539.0,17538.0,0.31226499]
[1673475111871,2.30489549,17539.0,17538.0,0.02226499]
[1673475112371,2.47307684,17539.0,17538.0,0.02226499]
[1673475112887,2.13415986,17539.0,17538.0,0.02226499]
[1673475113145,2.13415986,17539.0,17538.0,0.10126499]
[1673475113403,2.13415986,17539.0,17538.0,0.02226499]
[1673475113697,2.19166838,17539.0,17538.0,0.02226499]
[1673475114683,2.53151565,17539.0,17538.0,0.02226499]
[1673475114941,2.53151565,17539.0,17538.0,0.02326499]
[1673475117911,3.10167265,17539.0,17538.0,0.02326499]
[1673475120213,2.76182538,17539.0,17538.0,0.02326499]
[1673475120939,2.70431686,17539.0,17538.0,0.02326499]
[1673475122699,2.28067064,17539.0,17538.0,0.02326499]
[1673475122945,2.70558846,17539.0,17538.0,0.02326499]
[1673475123463,2.28067064,17539.0,17538.0,0.02326499]
[1673475125266,2.28067064,17539.0,17538.0,0.02226499]
[1673475125496,2.28067064,17539.0,17538.0,0.08777668]
[1673475125987,2.28067064,17539.0,17538.0,0.02726499]
[1673475126489,2.79033876,17539.0,17538.0,0.02726499]
[1673475126734,2.22865389,17539.0,17538.0,0.61593565]
[1673475127000,2.14416453,17539.0,17538.0,0.61593565]
[1673475127244,2.14416453,17539.0,17538.0,0.72443565]
[1673475127245,1.34402135,17539.0,17538.0,0.72443565]
[1673475127506,1.17397814,17539.0,17538.0,0.86438109]
[1673475127804,1.17397814,17539.0,17538.0,0.85938109]
[1673475128043,1.17397814,17539.0,17538.0,0.75188109]
[1673475128324,1.17397814,17539.0,17538.0,0.02326499]
[1673475128573,1.30385053,17539.0,17538.0,0.10126499]
[1673475128833,1.30385053,17539.0,17538.0,0.02226499]
[1673475129085,1.30385053,17539.0,17538.0,0.03426499]
[1673475129369,1.30385053,17539.0,17538.0,0.02226499]
[1673475129673,1.30385053,17539.0,17538.0,0.03426499]
[1673475129916,1.30385053,17539.0,17538.0,0.17405243]
[1673475130944,1.87400753,17539.0,17538.0,0.17405243]
[1673475131195,1.87426938,17539.0,17538.0,0.17405243]
[1673475131963,1.34447575,17539.0,17538.0,0.72087386]
[1673475132733,1.00411238,17539.0,17538.0,0.72087386]
[1673475133000,1.34457182,17539.0,17538.0,0.82927386]
[1673475133495,1.34457182,17539.0,17538.0,1.18612286]
[1673475133745,1.17448542,17539.0,17538.0,1.18612286]
[1673475133995,1.17448542,17539.0,17538.0,1.17503599]
[1673475134267,1.17448542,17539.0,17538.0,1.25403599]
[1673475134516,1.33607182,17539.0,17538.0,1.25403599]
[1673475135756,0.76591482,17539.0,17538.0,1.25403599]
[1673475136052,1.02127924,17539.0,17538.0,1.25403599]
[1673475136245,0.59583863,17539.0,17538.0,1.25403599]
[1673475136486,0.34047421,17539.0,17538.0,1.25403599]
[1673475136734,0.59589415,17539.0,17538.0,1.25403599]
[1673475138689,0.76591482,17539.0,17538.0,1.25403599]
[1673475139218,0.59599102,17539.0,17538.0,1.25403599]
[1673475139458,1.02143163,17539.0,17538.0,1.25403599]
[1673475139708,0.76591482,17539.0,17538.0,1.25312286]
[1673475139969,1.33607182,17539.0,17538.0,1.25312286]
[1673475140212,1.33607182,17539.0,17538.0,1.17412286]
[1673475140469,0.59598162,17539.0,17538.0,1.20497505]
[1673475140718,0.76591482,17539.0,17538.0,1.20497505]
[1673475141230,0.76591482,17539.0,17538.0,1.87999375]
[1673475141231,0.5960977,17539.0,17538.0,1.87999375]
[1673475141477,0.5960977,17539.0,17538.0,3.87999375]
[1673475141730,0.76591482,17539.0,17538.0,3.87999375]
[1673475141977,0.76591482,17539.0,17538.0,3.20497505]
[1673475145910,1.02158918,17539.0,17538.0,3.87999375]
[1673475146153,0.59614857,17539.0,17538.0,3.87999375]
[1673475146406,0.76591482,17539.0,17538.0,3.87999375]
[1673475146657,0.76591482,17539.0,17538.0,3.20497505]
[1673475147955,0.76634766,17539.0,17538.0,3.20497505]
[1673475148219,0.42545538,17539.0,17538.0,3.20497505]
[1673475148489,0.58188077,17539.0,17538.0,2.435849]
[1673475148737,1.43069477,17539.0,17538.0,2.435849]
[1673475148977,1.43069477,17539.0,17538.0,0.079]
[1673475149226,2.24036289,17539.0,17538.0,0.079]
[1673475149727,2.24036289,17539.0,17537.0,1.31779866]
[1673475149986,0.42617318,17538.0,17537.0,1.31779866]
[1673475150244,0.42617318,17538.0,17537.0,0.64277996]
[1673475150245,1.14888,17538.0,17537.0,0.64277996]
[1673475150497,2.01907,17538.0,17537.0,0.64277996]
[1673475150742,1.71907,17538.0,17537.0,0.356849]
[1673475150989,1.71907,17538.0,17537.0,0.435849]
[1673475151241,2.26979135,17538.0,17537.0,0.356849]
[1673475151486,2.77945947,17538.0,17537.0,0.356849]
[1673475152235,2.77945947,17538.0,17536.0,0.4627]
[1673475152489,0.81994541,17537.0,17536.0,0.3]
[1673475152731,2.53061141,17537.0,17536.0,0.3]
[1673475153265,2.58811993,17537.0,17536.0,0.3]
[1673475153535,2.58811993,17537.0,17536.0,0.656849]
[1673475153775,2.88210024,17537.0,17536.0,0.656849]
[1673475154031,2.88210024,17537.0,17536.0,0.3]
[1673475155274,2.82459172,17537.0,17536.0,0.3]
[1673475156064,2.82459172,17537.0,17536.0,0.656849]
[1673475156299,2.01314631,17537.0,17536.0,0.656849]
[1673475157840,2.31314631,17537.0,17536.0,0.3]
[1673475158337,2.82459172,17537.0,17536.0,0.3]
[1673475160837,2.82459172,17537.0,17536.0,0.656849]
[1673475161330,2.82459172,17537.0,17536.0,0.65676924]
[1673475161823,2.82459172,17537.0,17536.0,0.53426683]
[1673475161824,2.01314631,17537.0,17536.0,0.53426683]
[1673475163072,2.31314631,17537.0,17536.0,0.29992024]
[1673475163841,2.82459172,17537.0,17536.0,0.29992024]
[1673475164348,2.31314631,17537.0,17536.0,0.29992024]
[1673475165846,2.01314631,17537.0,17536.0,0.29992024]
[1673475166097,2.31314631,17537.0,17536.0,0.65676924]
[1673475166354,2.31314631,17537.0,17536.0,0.29992024]
[1673475166597,2.01314631,17537.0,17536.0,0.29992024]
[1673475167317,2.82459172,17537.0,17536.0,0.29992024]
[1673475171409,2.82459172,17537.0,17535.0,0.04799998]
[1673475171410,2.019166,17537.0,17535.0,0.04799998]
[1673475171676,0.81087739,17536.0,17535.0,0.04799998]
[1673475171933,2.76169556,17536.0,17535.0,0.04799998]
[1673475172173,2.81920408,17536.0,17534.0,0.4627]
[1673475172449,0.0085,17535.0,17534.0,0.4627]
[1673475172695,1.719361,17535.0,17534.0,0.4627]
[1673475172947,2.019361,17535.0,17534.0,0.4627]
[1673475173479,2.07686952,17535.0,17534.0,0.379]
[1673475173775,2.07686952,17535.0,17534.0,0.3]
[1673475173978,2.07686952,17535.0,17534.0,1.45210716]
[1673475173979,1.20658252,17535.0,17534.0,1.45210716]
[1673475174237,1.57467021,17535.0,17534.0,1.57127827]
[1673475174485,1.91515528,17535.0,17534.0,1.57127827]
[1673475175040,1.91515528,17535.0,17534.0,1.49227827]
[1673475175804,1.91515528,17535.0,17534.0,1.50427827]
[1673475176056,1.34486828,17535.0,17534.0,1.50427827]
[1673475176816,1.91515528,17535.0,17534.0,1.50427827]
[1673475177830,1.9726638,17535.0,17534.0,1.50427827]
[1673475178865,1.63217873,17535.0,17534.0,0.898149]
[1673475179123,1.93217873,17535.0,17534.0,0.898149]
[1673475179387,1.93217873,17535.0,17534.0,0.5293]
[1673475179658,1.93217873,17535.0,17534.0,0.886149]
[1673475179914,2.20246573,17535.0,17534.0,0.898149]
[1673475180633,2.20246573,17535.0,17534.0,0.5413]
[1673475180891,2.20246573,17535.0,17534.0,0.898149]
[1673475181418,1.63217873,17535.0,17534.0,0.898149]
[1673475182664,1.63217873,17535.0,17534.0,1.49817757]
[1673475182665,2.21971088,17535.0,17534.0,1.49817757]
[1673475182924,1.16631915,17535.0,17534.0,2.17319627]
[1673475183185,1.33647145,17535.0,17534.0,2.17319627]
[1673475183683,1.16638749,17535.0,17534.0,1.49817757]
[1673475183956,1.16638328,17535.0,17534.0,2.17319627]
[1673475184191,1.33647145,17535.0,17534.0,1.49817757]
[1673475184732,1.33647145,17535.0,17534.0,0.830249]
[1673475184970,1.29588321,17535.0,17534.0,0.830249]
[1673475185289,0.870287,17535.0,17534.0,0.4734]
[1673475185471,0.570287,17535.0,17534.0,0.830249]
[1673475185739,0.870287,17535.0,17534.0,0.830249]
[1673475186008,0.570287,17535.0,17534.0,0.830249]
[1673475186265,0.870287,17535.0,17534.0,0.83013768]
[1673475187053,0.570287,17535.0,17534.0,0.83013768]
[1673475187295,1.08116439,17535.0,17534.0,0.83013768]
[1673475187549,0.570287,17535.0,17534.0,1.06671712]
[1673475187806,0.570287,17535.0,17534.0,1.74173582]
[1673475188051,0.570287,17535.0,17534.0,1.06671712]
[1673475188303,0.570287,17535.0,17534.0,0.83013768]
[1673475188304,1.440574,17535.0,17534.0,0.83013768]
[1673475188564,0.51136185,17536.0,17535.0,0.3]
[1673475188812,0.51136185,17536.0,17535.0,1.262486]
[1673475188813,1.09011685,17536.0,17535.0,1.262486]
[1673475189080,1.66039585,17536.0,17535.0,1.262486]
[1673475189333,1.66039585,17536.0,17535.0,0.905637]
[1673475189597,1.149034,17536.0,17535.0,0.905637]
[1673475189885,1.149034,17536.0,17535.0,0.3]
[1673475190412,1.449034,17536.0,17535.0,0.37732887]
[1673475191195,1.449034,17536.0,17535.0,0.37232887]
[1673475191968,1.96066851,17536.0,17535.0,0.37232887]
[1673475192216,1.96066759,17536.0,17535.0,0.37232887]
[1673475192763,1.66066759,17536.0,17535.0,0.37232887]
[1673475194785,1.96066759,17536.0,17535.0,0.37232887]
[1673475195818,1.96066759,17536.0,17535.0,0.295]
[1673475196326,1.449034,17536.0,17535.0,0.295]
[1673475196575,1.96062948,17536.0,17535.0,0.295]
[1673475197343,1.66062948,17536.0,17535.0,0.295]
[1673475197843,1.96062948,17536.0,17535.0,0.295]
[1673475198353,1.96062948,17536.0,17535.0,0.48089231]
[1673475198849,1.46062948,17536.0,17535.0,0.48089231]
[1673475201400,1.16062948,17536.0,17535.0,0.48089231]
[1673475201915,0.640534,17536.0,17535.0,1.62700839]
[1673475202177,0.640534,17536.0,17535.0,2.30659093]
[1673475202435,0.570279,17536.0,17535.0,2.30659093]
[1673475203708,0.570279,17536.0,17535.0,1.62700839]
[1673475204690,0.570279,17536.0,17535.0,2.30659093]
[1673475205470,0.570279,17536.0,17535.0,1.62700839]
[1673475208231,1.08187448,17536.0,17535.0,1.62700839]
[1673475208731,0.570279,17536.0,17535.0,1.62700839]
[1673475209232,1.08187448,17536.0,17535.0,1.62700839]
[1673475212983,1.65212948,17536.0,17535.0,1.62700839]
[1673475213499,1.95212948,17536.0,17535.0,1.00044131]
[1673475213756,1.95212948,17536.0,17535.0,0.64359231]
[1673475214256,1.95212948,17536.0,17535.0,1.00044131]
[1673475215258,1.65212948,17536.0,17535.0,1.00044131]
[1673475216210,1.65212948,17536.0,17535.0,1.59617195]
[1673475217699,1.95212948,17536.0,17535.0,1.00044131]
[1673475219675,1.65212948,17536.0,17535.0,1.00044131]
[1673475220441,1.95212948,17536.0,17535.0,1.00044131]
[1673475220736,1.65212948,17536.0,17535.0,1.71929217]
[1673475220997,1.65212948,17536.0,17535.0,2.39887471]
[1673475221716,1.08185048,17536.0,17535.0,2.39887471]
[1673475222425,1.08185048,17536.0,17535.0,1.71929217]
[1673475223162,1.08185048,17536.0,17535.0,1.71920365]
[1673475223462,0.51159548,17536.0,17535.0,2.39878619]
[1673475223708,0.42646045,17536.0,17535.0,2.39878619]
[1673475224211,2.27317743,17537.0,17535.0,2.39878619]
[1673475224449,1.70294043,17537.0,17536.0,0.75942762]
[1673475224960,1.70294043,17537.0,17536.0,0.40257862]
[1673475225463,1.70294043,17537.0,17536.0,0.75942762]
[1673475225464,2.00294043,17537.0,17536.0,0.75942762]
[1673475225714,1.49134495,17537.0,17536.0,0.75942762]
[1673475225990,2.06663404,17537.0,17536.0,0.1747]
[1673475226231,1.49134495,17537.0,17536.0,0.1747]
[1673475226761,1.49134495,17537.0,17536.0,0.1627]
[1673475226762,2.06156695,17537.0,17536.0,0.1627]
[1673475227031,2.06156695,17537.0,17536.0,0.520549]
[1673475227280,2.06156695,17537.0,17536.0,0.74405829]
[1673475231103,1.76156695,17537.0,17536.0,0.74405829]
[1673475231609,2.06156695,17537.0,17536.0,0.74405829]
[1673475231844,1.76156695,17537.0,17536.0,0.74405829]
[1673475233070,2.22258216,17537.0,17536.0,0.74405829]
[1673475233813,1.65233916,17537.0,17536.0,0.74405829]
[1673475234798,1.65233916,17537.0,17536.0,0.38720929]
[1673475235547,1.65233916,17537.0,17536.0,0.74405829]
[1673475236279,1.65220118,17537.0,17536.0,0.74405829]
[1673475238038,1.95220118,17537.0,17536.0,0.74405829]
[1673475238304,1.65226068,17537.0,17536.0,0.74405829]
[1673475239048,1.65226068,17537.0,17536.0,1.96287792]
[1673475239049,1.08203868,17537.0,17536.0,1.96287792]
[1673475239310,1.08197117,17537.0,17536.0,1.96287792]
[1673475239807,1.08197117,17537.0,17536.0,1.98961693]
[1673475240521,0.57004451,17537.0,17536.0,1.98961693]
[1673475240771,0.51192666,17537.0,17536.0,1.98961693]
[1673475241284,1.08213466,17538.0,17536.0,1.98961693]
[1673475241536,1.08213466,17538.0,17537.0,0.55581069]
[1673475241788,1.08213466,17538.0,17537.0,1.23539323]
[1673475242060,0.51192666,17538.0,17537.0,1.23539323]
[1673475242311,0.51192666,17538.0,17537.0,0.55581069]
[1673475242563,0.51192666,17538.0,17537.0,1.74796005]
[1673475243068,0.51192666,17538.0,17537.0,1.75496005]
[1673475243319,0.15001477,17539.0,17537.0,1.91726005]